[Event "HUN-ch U8-U18 2019"]
[Site "Balatonlelle"]
[Date "2019.06.25"]
[Round "6.4"]
[White "Eros, Vivien"]
[Black "Gabor, Maria"]
[Result "0-1"]
[ECO "D02"]
[WhiteElo "1317"]
[BlackElo "1308"]
[Annotator "NA"]
[PlyCount "72"]
[EventDate "2019.06.21"]
[EventType "swiss"]
[EventCountry "HUN"]
[SourceTitle "playchess.com"]
[Source "ChessBase"]
[SourceQuality "1"]
[TimeControl "40/5400+30:1800+30"]

1. d4 {[%emt 0:00:03]} d5 {[%emt 0:00:10]} 2. Nf3 {[%emt 0:00:11]} e6 {[%emt 0:00:23]} 3. Bf4 {[%emt 0:00:11]} Bd6 {[%emt 0:00:07]} 4. Bg3 {[%emt 0:00:10]} f5 {[%emt 0:00:07]} 5. e3 {[%emt 0:02:16]} Nf6 {[%emt 0:00:10]} 6. Bd3 {[%emt 0:01:01]} O-O {[%emt 0:00:12]} 7. Nbd2 {[%emt 0:02:33]} Nbd7 {[%emt 0:01:11]} 8. c4 Ne4 {[%emt 0:05:06]} 9. Qe2 {[%emt 0:04:46]} Ndf6 {[%emt 0:01:10]} 10. Ne5 {[%emt 0:00:54]} Bb4 {[%emt 0:11:23]} 11. Bxe4 {[%emt 0:03:23]} Nxe4 {[%emt 0:00:54]} 12. Rd1 {[%emt 0:00:55]} Bxd2+ {[%emt 0:01:16]} 13. Rxd2 {[%emt 0:00:08]} Nxd2 {[%emt 0:00:04]} 14. Qxd2 {[%emt 0:00:11]} dxc4 {[%emt 0:02:17]} 15. Nxc4 {[%emt 0:00:38]} Qd5 {[%emt 0:03:48]} 16. Ne5 {[%emt 0:02:41]} Qxg2 {[%emt 0:00:37]} 17. Rf1 {[%emt 0:00:24]} Qe4 {[%emt 0:00:46]} 18. b3 {[%emt 0:04:25]} b6 {[%emt 0:06:22]} 19. f3 {[%emt 0:01:09]} Qd5 {[%emt 0:03:14]} 20. Rg1 {[%emt 0:00:57]} c5 {[%emt 0:02:03]} 21. Qg2 {[%emt 0:01:02]} Qb7 {[%emt 0:09:11]} 22. Bf4 {[%emt 0:01:16]} Kh8 {[%emt 0:01:56]} 23. h4 {[%emt 0:09:32]} Rg8 {[%emt 0:09:41]} 24. h5 {[%emt 0:01:02]} cxd4 {[%emt 0:01:59]} 25. Rh1 {[%emt 0:07:36]} h6 {[%emt 0:05:22]} 26. Qg6 {[%emt 0:00:41]} Rf8 {[%emt 0:00:51]} 27. Bxh6 {[%emt 0:03:09]} Rf6 {[%emt 0:01:59]} 28. Qe8+ {[%emt 0:02:13]} Kh7 {[%emt 0:00:04]} 29. Bg5 {[%emt 0:03:11]} Qc7 {[%emt 0:03:49]} 30. exd4 {[%emt 0:00:32]} Qc3+ {[%emt 0:00:26]} 31. Kf1 {[%emt 0:03:39]} Ba6+ {[%emt 0:00:14]} 32. Kg2 {[%emt 0:00:55]} Rxe8 {[%emt 0:00:19]} 33. Bxf6 {[%emt 0:00:14]} gxf6 {[%emt 0:00:11]} 34. Nd7 {[%emt 0:00:42]} Rg8+ {[%emt 0:00:10]} 35. Kh2 {[%emt 0:00:47]} Qc7+ {[%emt 0:00:44]} 36. Ne5 {[%emt 0:00:15]} fxe5 {[%emt 0:00:25]} 0-1

[Event "HUN-ch U8-U18 2019"]
[Site "Balatonlelle"]
[Date "2019.06.25"]
[Round "6.5"]
[White "Papp, Bence"]
[Black "Geher, Koppany"]
[Result "1/2-1/2"]
[ECO "B47"]
[WhiteElo "2094"]
[BlackElo "2089"]
[Annotator "NA"]
[PlyCount "96"]
[EventDate "2019.06.21"]
[EventType "swiss"]
[EventCountry "HUN"]
[SourceTitle "playchess.com"]
[Source "ChessBase"]
[SourceQuality "1"]
[TimeControl "40/5400+30:1800+30"]

1. e4 {[%emt 0:00:02]} c5 {[%emt 0:00:05]} 2. Nf3 {[%emt 0:00:04]} e6 {[%emt 0:00:05]} 3. d4 {[%emt 0:00:04]} cxd4 {[%emt 0:00:03]} 4. Nxd4 {[%emt 0:00:05]} Nc6 {[%emt 0:00:05]} 5. Nc3 {[%emt 0:00:05]} Qc7 {[%emt 0:00:05]} 6. Ndb5 {[%emt 0:00:08]} Qb8 {[%emt 0:00:24]} 7. Be3 {[%emt 0:00:10]} a6 {[%emt 0:00:14]} 8. Bb6 {[%emt 0:00:29]} axb5 {[%emt 0:00:14]} 9. Nxb5 {[%emt 0:00:07]} Bb4+ {[%emt 0:00:11]} 10. c3 {[%emt 0:00:06]} Ba5 {[%emt 0:00:04]} 11. Nc7+ {[%emt 0:00:27]} Qxc7 {[%emt 0:00:07]} 12. Bxc7 {[%emt 0:00:05]} Bxc7 {[%emt 0:00:06]} 13. Qg4 {[%emt 0:00:11]} g6 {[%emt 0:00:11]} 14. Bb5 {[%emt 0:00:11]} Kf8 {[%emt 0:00:18]} 15. O-O {[%emt 0:00:27]} Kg7 {[%emt 0:00:11]} 16. a4 {[%emt 0:00:10]} Nf6 {[%emt 0:00:33]} 17. Qe2 {[%emt 0:00:10]} d5 {[%emt 0:00:08]} 18. exd5 {[%emt 0:00:06]} exd5 {[%emt 0:00:31]} 19. b4 {[%emt 0:00:12]} Bf5 {[%emt 0:01:02]} 20. Bxc6 {[%emt 0:00:53]} bxc6 {[%emt 0:00:24]} 21. a5 {[%emt 0:00:29]} Rhe8 {[%emt 0:02:51]} 22. Qb2 {[%emt 0:01:18]} Bd3 {[%emt 0:04:31]} 23. Rfe1 {[%emt 0:01:09]} Bc4 {[%emt 0:06:49]} 24. f3 {[%emt 0:03:56]} Reb8 {[%emt 0:05:28]} 25. Qf2 {[%emt 0:03:07]} Bd6 {[%emt 0:03:00]} 26. Qd4 {[%emt 0:15:36]} Rb5 {[%emt 0:19:05]} 27. Kh1 {[%emt 0:00:35]} c5 {[%emt 0:00:22]} 28. bxc5 {[%emt 0:00:12]} Bxc5 {[%emt 0:00:12]} 29. Qe5 {[%emt 0:01:12]} Ra6 {[%emt 0:15:13]} 30. Reb1 {[%emt 0:10:04]} Bd6 {[%emt 0:03:34]} 31. Qd4 {[%emt 0:00:22]} Raxa5 32. g4 g5 33. h4 {[%emt 0:11:13]} h6 {[%emt 0:16:29]} 34. hxg5 {[%emt 0:03:34]} hxg5 {[%emt 0:00:01]} 35. Re1 {[%emt 0:09:10]} Rxa1 {[%emt 0:07:50]} 36. Rxa1 {[%emt 0:00:06]} Kg6 {[%emt 0:00:29]} 37. Ra8 {[%emt 0:04:06]} Rb1+ {[%emt 0:00:43]} 38. Kg2 {[%emt 0:00:00]} Rb2+ {[%emt 0:00:00]} 39. Kg1 {[%emt 0:00:00]} Bc7 {[%emt 0:00:00]} 40. Kh1 {[%emt 0:00:00]} Be2 {[%emt 0:00:00]} 41. Qf2 {[%emt 0:10:59]} Bb6 {[%emt 0:35:12]} 42. Qg3 {[%emt 0:01:39]} Rb1+ {[%emt 0:00:08]} 43. Kh2 {[%emt 0:00:08]} Be3 {[%emt 0:03:22]} 44. Ra4 {[%emt 0:02:59]} Rf1 {[%emt 0:01:57]} 45. Qe5 {[%emt 0:01:47]} Rf2+ {[%emt 0:01:03]} 46. Kg3 {[%emt 0:00:15]} Rxf3+ {[%emt 0:00:11]} 47. Kh2 {[%emt 0:00:06]} Bf1 {[%emt 0:02:03]} 48. c4 {[%emt 0:00:41]} Rh3# {[%emt 0:00:07]} 1/2-1/2

[Event "HUN-ch U8-U18 2019"]
[Site "Balatonlelle"]
[Date "2019.06.25"]
[Round "6.5"]
[White "Toth, Lili"]
[Black "Toth, Timea"]
[Result "0-1"]
[ECO "E61"]
[WhiteElo "1523"]
[BlackElo "1964"]
[Annotator "NA"]
[PlyCount "214"]
[EventDate "2019.06.21"]
[EventType "swiss"]
[EventCountry "HUN"]
[SourceTitle "playchess.com"]
[Source "ChessBase"]
[SourceQuality "1"]
[TimeControl "40/5400+30:1800+30"]

1. d4 {[%emt 0:00:05]} Nf6 {[%emt 0:00:04]} 2. c4 {[%emt 0:00:12]} g6 {[%emt 0:00:05]} 3. Nc3 {[%emt 0:00:22]} Bg7 {[%emt 0:00:07]} 4. Nf3 {[%emt 0:00:59]} O-O {[%emt 0:00:52]} 5. e3 {[%emt 0:01:43]} d6 {[%emt 0:01:25]} 6. Be2 {[%emt 0:01:31]} c5 {[%emt 0:02:05]} 7. O-O {[%emt 0:01:21]} Nbd7 {[%emt 0:01:32]} 8. h3 {[%emt 0:02:53] E61: King's Indian: Early deviations for White, including Smyslov System} (8. d5 a6 9. a4 Ne8 10. e4 e5 11. dxe6 fxe6 12. Bg5 Qc7 13. Qd2 Nb8 14. e5 dxe5 15. Bd8 Qd7 16. Qxd7 Bxd7 {1-0 (23) Mikhalevski,V (2571)-Ladron de Guevara Pinto,P (2367) Caleta 2015}) 8... Ne8 {[%emt 0:26:19]} 9. Bd2 {[%emt 0:04:55]} f5 {[%emt 0:07:29]} 10. d5 $146 {[%emt 0:02:52]} ({Predecessor:} 10. Rc1 a6 11. a3 cxd4 12. exd4 e5 13. dxe5 Nxe5 14. Bf4 Be6 15. Nd5 Nc6 {0-1 (41) Willy,O-Linghede,G Pula 1972}) 10... Nc7 {[%emt 0:12:06]} 11. Qc2 {[%emt 0:02:28]} e5 {[%emt 0:09:50]} 12. e4 {[%emt 0:02:43]} f4 {[%emt 0:00:28]} 13. Kh2 {[%emt 0:01:01]} Nf6 {[%emt 0:04:48]} 14. g3 {[%emt 0:03:47]} Qd7 {[%emt 0:02:38]} 15. Ng1 g5 16. g4 {[%emt 0:01:32]} Qf7 {[%emt 0:06:37]} 17. f3 {[%emt 0:03:33]} h5 {[%emt 0:02:28]} 18. Qd1 {[%emt 0:03:26]} Qg6 {[%emt 0:00:43]} 19. Bd3 {[%emt 0:02:09]} Qh7 {[%emt 0:00:42]} 20. Kg2 {[%emt 0:01:43]} hxg4 {[%emt 0:00:11]} 21. fxg4 {[%emt 0:01:48]} Qg6 {[%emt 0:03:03]} 22. Qf3 {[%emt 0:02:30]} Rb8 {[%emt 0:00:36]} 23. a4 {[%emt 0:02:12]} a6 {[%emt 0:00:20]} 24. Nge2 {[%emt 0:03:36]} Bd7 {[%emt 0:00:19]} 25. b3 {[%emt 0:14:21]} b5 {[%emt 0:01:53]} 26. a5 {[%emt 0:01:12]} b4 {[%emt 0:00:48]} 27. Na4 {[%emt 0:01:04]} Bxa4 {[%emt 0:01:26]} 28. Rxa4 {[%emt 0:02:40]} Kf7 {[%emt 0:01:01]} 29. Rh1 {[%emt 0:01:01]} Rh8 {[%emt 0:00:12]} 30. Raa1 {[%emt 0:01:37]} Rh6 {[%emt 0:00:35]} 31. Rh2 {[%emt 0:01:30]} Qh7 {[%emt 0:00:28]} 32. Rah1 {[%emt 0:02:47]} Rh8 {[%emt 0:02:17]} 33. Be1 {[%emt 0:03:16]} Ke7 {[%emt 0:01:51]} 34. h4 {[%emt 0:11:55]} Nd7 {[%emt 0:02:18]} 35. h5 {[%emt 0:00:51]} Nf8 {[%emt 0:01:05]} 36. Rh3 {[%emt 0:01:44]} Nd7 {[%emt 0:00:42]} 37. Bc2 {[%emt 0:02:25]} Nf6 {[%emt 0:00:22]} 38. Nc1 {[%emt 0:01:59]} Kf7 {[%emt 0:01:19]} 39. Nd3 {[%emt 0:04:09]} Bf8 {[%emt 0:00:16]} 40. Nb2 {[%emt 0:00:00]} Be7 {[%emt 0:00:00]} 41. Na4 {[%emt 0:01:36]} Bd8 {[%emt 0:00:51]} 42. Bf2 {[%emt 0:07:38]} Nce8 {[%emt 0:00:39]} 43. Nb6 {[%emt 0:03:11]} Bxb6 {[%emt 0:00:30]} 44. axb6 {[%emt 0:00:09]} Kf8 {[%emt 0:04:35]} 45. Ra1 {[%emt 0:00:56]} Qb7 {[%emt 0:00:10]} 46. Ra4 {[%emt 0:01:44]} Qxb6 {[%emt 0:01:52]} 47. Rh1 {[%emt 0:00:32]} Qb7 {[%emt 0:01:35]} 48. Rha1 {[%emt 0:00:41]} Nc7 {[%emt 0:00:10]} 49. Ra5 {[%emt 0:04:44]} Qc8 {[%emt 0:01:03]} 50. Bd1 {[%emt 0:00:29]} Qd7 {[%emt 0:08:53]} 51. R5a4 {[%emt 0:04:23]} Qh7 {[%emt 0:01:42]} 52. Bc2 {[%emt 0:04:12]} Qd7 {[%emt 0:00:58]} 53. Bd1 {[%emt 0:00:28]} Kf7 {[%emt 0:01:25]} 54. Be2 {[%emt 0:02:06]} Ra8 {[%emt 0:02:25]} 55. Ra5 {[%emt 0:00:59]} Qc8 {[%emt 0:03:06]} 56. Bd1 {[%emt 0:02:54]} Kf8 {[%emt 0:01:15]} 57. Be2 {[%emt 0:01:31]} Rh7 {[%emt 0:00:12]} 58. Bd1 {[%emt 0:01:28]} Ng8 {[%emt 0:00:07]} 59. Be2 {[%emt 0:01:14]} Nh6 {[%emt 0:00:19]} 60. Bd1 {[%emt 0:00:14]} Nf7 {[%emt 0:00:08]} (60... Ne8 $19 {and Black stays clearly on top.} 61. Bg1 Nf6) 61. Qd3 {[%emt 0:00:54]} Nd8 {[%emt 0:01:04]} 62. Qh3 {[%emt 0:01:53]} Rh6 {[%emt 0:00:13]} 63. Qf3 {[%emt 0:01:04]} Nb7 {[%emt 0:00:14]} 64. R5a4 {[%emt 0:00:28]} a5 {[%emt 0:00:11]} 65. Be2 {[%emt 0:01:17]} Ra6 {[%emt 0:00:11]} 66. Bd1 {[%emt 0:00:24]} Na8 {[%emt 0:00:25]} 67. Qe2 {[%emt 0:00:24]} Nb6 {[%emt 0:01:04]} 68. R4a2 {[%emt 0:00:10]} Kg7 {[%emt 0:01:28]} 69. Bc2 {[%emt 0:00:57]} (69. Be1 $142) 69... Rh8 {[%emt 0:00:26]} 70. Qf3 {[%emt 0:01:21]} Kh6 {[%emt 0:00:30]} 71. Qe2 {[%emt 0:00:16]} Qc7 {[%emt 0:00:07]} 72. Kf3 {[%emt 0:00:15]} Rha8 {[%emt 0:00:31]} 73. Qd3 {[%emt 0:00:40]} R8a7 {[%emt 0:00:38]} 74. Bd1 {[%emt 0:01:19]} Qc8 {[%emt 0:00:22]} 75. Qc2 {[%emt 0:00:22]} (75. Be1 {might work better.}) 75... Nd8 {[%emt 0:01:25]} 76. Be1 {[%emt 0:01:03]} Nf7 {[%emt 0:00:08]} 77. Bf2 {[%emt 0:00:42]} Kh7 {[%emt 0:00:31]} 78. Qe2 {[%emt 0:00:49]} Qd7 {[%emt 0:00:13]} 79. Kg2 {[%emt 0:01:12]} a4 {[%emt 0:00:25]} 80. Kh3 {[%emt 0:00:34]} Qe8 {[%emt 0:08:31]} 81. Qc2 {[%emt 0:00:50]} (81. bxa4 {was called for.} Nd7 82. Qf3) 81... axb3 {[%emt 0:04:09] Discovered Attack} 82. Qxb3 {[%emt 0:00:06]} Rxa2 {[%emt 0:00:21]} 83. Rxa2 {[%emt 0:00:05]} Rxa2 {[%emt 0:00:05]} 84. Qxa2 {[%emt 0:00:04]} Qa8 {[%emt 0:00:43]} 85. Qxa8 {[%emt 0:00:50]} Nxa8 {[%emt 0:00:04]} 86. Kg2 {[%emt 0:00:16]} Nb6 {[%emt 0:00:43]} 87. Bb3 {[%emt 0:00:06]} Nh6 {[%emt 0:00:22]} 88. Kf3 {[%emt 0:00:05]} Nd7 {[%emt 0:00:27]} 89. Bd1 {[%emt 0:02:13]} Nf6 {[%emt 0:00:14]} 90. Bg1 {[%emt 0:00:31]} Nhxg4 {[%emt 0:00:34]} 91. Ba4 {[%emt 0:00:24]} Kh6 {[%emt 0:00:31]} 92. Bxc5 {[%emt 0:00:40]} Nh2+ $19 {[%emt 0:01:56]} (92... dxc5 $142 93. Ke2 Nxe4 94. Kf3 Ngf6 95. Kg2 g4 96. Bc2 Kxh5 97. Kg1 Nd2 98. Bd1 Nxc4 99. Bc2 {[#]} Ne3 $1 {[%mdl 512]} 100. Bb3 c4 101. Bd1 Ne4 102. d6 f3 103. Kh1 Nxd1 104. d7 f2 105. Kg2 Ne3+ 106. Kh2 g3+ 107. Kh3 f1=Q#) 93. Kg2 {[%emt 0:00:37]} Nxe4 {[%emt 0:02:33]} (93... dxc5 $142 94. Kxh2 Nxe4) 94. Bxb4 {[%emt 0:00:20] [#]} Ng4 $1 {[%emt 0:00:50]} 95. Kf3 {[%emt 0:00:37]} Ngf6 {[%emt 0:00:59]} 96. Bc2 {[%emt 0:00:27]} g4+ {[%emt 0:00:25]} 97. Kg2 {[%emt 0:00:25]} f3+ {[%emt 0:00:22]} 98. Kg1 {[%emt 0:00:38]} g3 {[%emt 0:00:27]} 99. Bxe4 {[%emt 0:00:36]} Nxe4 {[%emt 0:00:08]} 100. Bxd6 {[%emt 0:00:27]} f2+ {[%emt 0:00:32]} 101. Kg2 {[%emt 0:00:13]} Nd2 {[%emt 0:00:35]} 102. Kxg3 {[%emt 0:00:24]} f1=Q {[%emt 0:00:18]} 103. c5 {[%emt 0:00:26]} Qf3+ {[%emt 0:00:10]} 104. Kh4 {[%emt 0:00:35]} Ne4 {[%emt 0:00:23]} 105. Bf8+ {[%emt 0:00:28]} Kh7 {[%emt 0:00:22]} 106. h6 {[%emt 0:00:40]} Qg3+ {[%emt 0:00:20]} 107. Kh5 {[%emt 0:00:06]} Qg5# {[%emt 0:00:19]} 0-1

[Event "HUN-ch U8-U18 2019"]
[Site "Balatonlelle"]
[Date "2019.06.25"]
[Round "6.6"]
[White "Tapodi, Norman Lajos"]
[Black "Dibusz, Domonkos"]
[Result "1/2-1/2"]
[ECO "D35"]
[WhiteElo "2043"]
[BlackElo "2067"]
[Annotator "NA"]
[PlyCount "55"]
[EventDate "2019.06.21"]
[EventType "swiss"]
[EventCountry "HUN"]
[SourceTitle "playchess.com"]
[Source "ChessBase"]
[SourceQuality "1"]
[TimeControl "40/5400+30:1800+30"]

1. d4 {[%emt 0:00:03]} d5 {[%emt 0:00:34]} 2. c4 {[%emt 0:00:17]} e6 {[%emt 0:02:05]} 3. Nc3 {[%emt 0:00:16]} Nf6 {[%emt 0:00:26]} 4. cxd5 {[%emt 0:03:13]} exd5 {[%emt 0:00:18]} 5. Bg5 {[%emt 0:00:36]} Be7 {[%emt 0:04:02]} 6. e3 {[%emt 0:01:09]} b6 {[%emt 0:03:21]} 7. Bd3 {[%emt 0:04:19]} Bb7 {[%emt 0:01:12]} 8. Qc2 {[%emt 0:02:32]} h6 {[%emt 0:02:38]} 9. Bh4 {[%emt 0:00:52]} Nbd7 {[%emt 0:00:52]} 10. Nf3 {[%emt 0:02:48]} c5 {[%emt 0:04:48]} 11. dxc5 {[%emt 0:07:32]} bxc5 {[%emt 0:03:19]} 12. O-O {[%emt 0:02:09]} O-O {[%emt 0:00:27]} 13. Rfd1 {[%emt 0:18:15]} d4 {[%emt 0:15:22]} 14. Bxf6 {[%emt 0:19:23]} Bxf6 {[%emt 0:07:05]} 15. Ne4 {[%emt 0:12:23]} Rc8 {[%emt 0:00:30]} 16. exd4 {[%emt 0:00:30]} cxd4 17. Qd2 Bxe4 {[%emt 0:17:04]} 18. Bxe4 {[%emt 0:01:45]} Ne5 {[%emt 0:04:57]} 19. Nxe5 {[%emt 0:04:35]} Bxe5 {[%emt 0:00:10]} 20. f4 {[%emt 0:00:35]} Bf6 {[%emt 0:01:31]} 21. Qd3 {[%emt 0:04:43]} Qd6 {[%emt 0:01:57]} 22. g3 {[%emt 0:00:42]} Qb4 {[%emt 0:00:54]} 23. Rd2 {[%emt 0:00:51]} Rfe8 {[%emt 0:01:44]} 24. Re1 {[%emt 0:01:57]} Kh8 {[%emt 0:02:11]} 25. a3 {[%emt 0:01:43]} Qa5 {[%emt 0:01:45]} 26. Kg2 {[%emt 0:01:10]} Re7 {[%emt 0:05:22]} 27. Ree2 {[%emt 0:03:43]} Rce8 {[%emt 0:05:26]} 28. Rc2 {[%emt 0:01:00]} 1/2-1/2

[Event "HUN-ch U8-U18 2019"]
[Site "Balatonlelle"]
[Date "2019.06.25"]
[Round "6.7"]
[White "Borhy, Marcell"]
[Black "Pasti, Aron"]
[Result "1/2-1/2"]
[ECO "A06"]
[WhiteElo "2374"]
[BlackElo "2193"]
[Annotator "NA"]
[PlyCount "50"]
[EventDate "2019.06.21"]
[EventType "swiss"]
[EventCountry "HUN"]
[SourceTitle "playchess.com"]
[Source "ChessBase"]
[SourceQuality "1"]
[TimeControl "40/5400+30:1800+30"]

1. Nf3 {[%emt 0:00:05]} d5 {[%emt 0:00:04]} 2. d3 {[%emt 0:00:09]} c5 {[%emt 0:01:28]} 3. Nbd2 {[%emt 0:00:11]} Nc6 {[%emt 0:00:09]} 4. e4 {[%emt 0:00:09]} e6 {[%emt 0:02:27]} 5. Be2 {[%emt 0:00:34]} Nf6 {[%emt 0:00:16]} 6. c3 {[%emt 0:00:18]} Be7 {[%emt 0:01:35]} 7. O-O {[%emt 0:00:51]} O-O {[%emt 0:01:19]} 8. e5 {[%emt 0:04:29]} Nd7 {[%emt 0:04:20]} 9. d4 {[%emt 0:00:08]} f6 {[%emt 0:01:35]} 10. exf6 {[%emt 0:00:37]} Bxf6 {[%emt 0:02:40]} 11. dxc5 {[%emt 0:12:04]} Nxc5 {[%emt 0:01:48]} 12. Nb3 {[%emt 0:01:12]} Nxb3 {[%emt 0:06:01]} 13. Qxb3 {[%emt 0:00:41]} Qc7 {[%emt 0:00:26]} 14. Be3 {[%emt 0:01:20]} b6 {[%emt 0:02:28]} 15. Rad1 {[%emt 0:07:52]} Bb7 {[%emt 0:02:30]} 16. Qc2 {[%emt 0:03:22]} g6 {[%emt 0:12:43]} 17. Qc1 {[%emt 0:09:02]} Ne7 {[%emt 0:10:24]} 18. c4 {[%emt 0:08:04]} Nf5 {[%emt 0:03:27]} 19. cxd5 {[%emt 0:04:24]} Qxc1 {[%emt 0:00:12]} 20. Bxc1 {[%emt 0:01:43]} Bxd5 {[%emt 0:01:36]} 21. b3 {[%emt 0:00:54]} Rfc8 {[%emt 0:01:56]} 22. Bd3 {[%emt 0:01:41]} Rf8 23. Ba3 Rac8 24. Be2 Rf7 25. Rc1 Rfc7 1/2-1/2

[Event "HUN-ch U8-U18 2019"]
[Site "Balatonlelle"]
[Date "2019.06.25"]
[Round "6.7"]
[White "Pribelszky, Bence"]
[Black "Karacsonyi, Gellert"]
[Result "0-1"]
[ECO "A03"]
[WhiteElo "2244"]
[BlackElo "2304"]
[Annotator "ChessBase"]
[PlyCount "102"]
[EventDate "2019.06.21"]
[EventType "swiss"]
[EventCountry "HUN"]
[SourceTitle "playchess.com"]
[Source "ChessBase"]
[SourceQuality "1"]
[TimeControl "40/5400+30:1800+30"]

1. f4 {[%emt 0:00:18]} Nf6 {[%emt 0:03:58]} 2. Nf3 {[%emt 0:00:25]} d5 {[%emt 0:02:42]} 3. e3 {[%emt 0:01:07]} c5 {[%emt 0:01:45]} 4. b3 {[%emt 0:01:19]} Bf5 {[%emt 0:02:19]} 5. Bb2 {[%emt 0:00:27]} e6 {[%emt 0:00:29]} 6. Bb5+ {[%emt 0:05:15]} Nc6 {[%emt 0:00:29]} 7. Bxc6+ {[%emt 0:06:42]} bxc6 {[%emt 0:00:57]} 8. d3 {[%emt 0:00:32]} Bd6 {[%emt 0:06:07]} 9. Qe2 {[%emt 0:04:59]} h6 {[%emt 0:03:26]} 10. Nbd2 {[%emt 0:00:34]} Bh7 {[%emt 0:00:23]} 11. O-O {[%emt 0:09:36]} O-O {[%emt 0:00:54]} 12. Kh1 {[%emt 0:08:00]} Rb8 {[%emt 0:08:01]} 13. Rac1 {[%emt 0:02:28]} Nd7 {[%emt 0:02:26]} 14. g4 {[%emt 0:04:15]} f6 {[%emt 0:11:03]} 15. Rg1 {[%emt 0:04:19]} g5 {[%emt 0:06:17]} 16. h4 Qe7 17. Rcf1 {[%emt 0:30:18]} Rf7 {[%emt 0:08:49]} 18. Rg2 {[%emt 0:06:39]} e5 {[%emt 0:07:47]} 19. f5 {[%emt 0:03:42]} Kf8 {[%emt 0:04:05]} 20. e4 {[%emt 0:01:12]} Bg8 {[%emt 0:00:30]} 21. c3 {[%emt 0:05:30]} a5 {[%emt 0:02:14]} 22. d4 {[%emt 0:00:42]} Rh7 {[%emt 0:01:50]} 23. dxe5 {[%emt 0:02:35]} Nxe5 {[%emt 0:01:33]} 24. exd5 {[%emt 0:00:27]} cxd5 {[%emt 0:03:25]} 25. c4 {[%emt 0:00:34]} dxc4 {[%emt 0:11:45]} 26. Bxe5 {[%emt 0:00:19]} Bxe5 {[%emt 0:01:29]} 27. Nxc4 {[%emt 0:00:32]} Bc7 {[%emt 0:02:48]} 28. Rd1 {[%emt 0:00:41]} Rd8 {[%emt 0:02:37]} 29. Rxd8+ {[%emt 0:00:29]} Qxd8 {[%emt 0:00:56]} 30. Qe3 {[%emt 0:00:29]} Re7 {[%emt 0:00:12]} 31. Qc3 {[%emt 0:00:31]} Rd7 {[%emt 0:02:55]} 32. Rd2 {[%emt 0:00:30]} Bd5 {[%emt 0:00:26]} 33. Kg1 {[%emt 0:00:08]} Bf4 {[%emt 0:01:06]} 34. Re2 {[%emt 0:00:53]} Bxf3 {[%emt 0:00:37]} 35. Qxf3 {[%emt 0:00:05]} Rd3 {[%emt 0:00:16]} 36. Qe4 {[%emt 0:00:52]} Rg3+ {[%emt 0:00:15]} 37. Rg2 {[%emt 0:00:31]} Qd1+ {[%emt 0:00:07]} 38. Kf2 {[%emt 0:00:03]} Rd3 {[%emt 0:01:19]} 39. hxg5 {[%emt 0:00:58]} hxg5 {[%emt 0:00:25]} 40. Qa8+ {[%emt 0:00:00]} Rd8 {[%emt 0:00:00]} 41. Qf3 {[%emt 0:21:47]} Qd4+ {[%emt 0:04:27]} 42. Kf1 {[%emt 0:00:23]} Qa1+ {[%emt 0:00:30]} 43. Kf2 {[%emt 0:00:16]} Re8 {[%emt 0:04:32]} 44. Qd3 {[%emt 0:04:15]} Qe1+ {[%emt 0:01:07]} 45. Kf3 {[%emt 0:00:06]} Qh1 {[%emt 0:00:34]} 46. Ne5 {[%emt 0:05:44]} Bxe5 {[%emt 0:00:44]} 47. Qd5 {[%emt 0:00:31]} Qf1+ {[%emt 0:00:46]} 48. Rf2 {[%emt 0:00:22]} Qh3+ {[%emt 0:00:06]} 49. Ke2 {[%emt 0:00:12]} Bd4+ {[%emt 0:00:10]} 50. Kd1 {[%emt 0:00:36]} Qd3+ {[%emt 0:00:09]} 51. Rd2 {[%emt 0:00:19]} Qb1# {[%emt 0:00:05]} 0-1

[Event "HUN-ch U8-U18 2019"]
[Site "Balatonlelle"]
[Date "2019.06.25"]
[Round "6.8"]
[White "Virag, Balint"]
[Black "Palczert, Botond"]
[Result "1-0"]
[ECO "B92"]
[WhiteElo "2173"]
[BlackElo "2068"]
[Annotator "ChessBase"]
[PlyCount "110"]
[EventDate "2019.06.21"]
[EventType "swiss"]
[EventCountry "HUN"]
[SourceTitle "playchess.com"]
[Source "ChessBase"]
[SourceQuality "1"]
[TimeControl "40/5400+30:1800+30"]

1. e4 {[%emt 0:00:02]} c5 {[%emt 0:00:07]} 2. Nf3 {[%emt 0:00:07]} d6 {[%emt 0:00:33]} 3. d4 {[%emt 0:00:07]} cxd4 {[%emt 0:00:06]} 4. Nxd4 {[%emt 0:00:08]} Nf6 {[%emt 0:00:04]} 5. Nc3 {[%emt 0:00:08]} a6 {[%emt 0:00:09]} 6. Be2 {[%emt 0:00:08]} e5 {[%emt 0:01:01]} 7. Nb3 {[%emt 0:00:09]} Nbd7 {[%emt 0:01:36]} 8. Be3 {[%emt 0:09:55]} Be7 {[%emt 0:01:25]} 9. O-O {[%emt 0:02:28]} O-O {[%emt 0:01:40]} 10. a4 {[%emt 0:00:46]} b6 {[%emt 0:02:40]} 11. f4 {[%emt 0:15:11]} Bb7 {[%emt 0:02:27]} 12. Bf3 {[%emt 0:00:18]} Rc8 {[%emt 0:02:13]} 13. Nd5 {[%emt 0:02:26]} Nxd5 {[%emt 0:04:26]} 14. exd5 {[%emt 0:01:13]} Bf6 {[%emt 0:11:17]} 15. c3 {[%emt 0:03:25]} exf4 {[%emt 0:02:38]} 16. Bxf4 {[%emt 0:00:28]} Be5 {[%emt 0:00:45]} 17. Qd2 {[%emt 0:07:01]} Qh4 {[%emt 0:04:57]} 18. Be2 {[%emt 0:05:01]} Rfe8 {[%emt 0:05:03]} 19. g3 {[%emt 0:07:02]} Bxf4 {[%emt 0:08:25]} 20. Rxf4 {[%emt 0:00:43]} Qg5 {[%emt 0:01:58]} 21. c4 {[%emt 0:18:58]} Qe5 {[%emt 0:00:30]} 22. Bg4 Nc5 23. Nxc5 {[%emt 0:01:00]} Rxc5 {[%emt 0:07:52]} 24. Raf1 {[%emt 0:00:14]} Rc7 {[%emt 0:03:03]} 25. Qf2 {[%emt 0:00:17]} f6 {[%emt 0:14:53]} 26. Qxb6 {[%emt 0:06:23]} Qe3+ {[%emt 0:00:15]} 27. Qxe3 {[%emt 0:00:13]} Rxe3 {[%emt 0:00:05]} 28. R1f3 {[%emt 0:03:35]} Re1+ {[%emt 0:07:04]} 29. Kf2 {[%emt 0:00:27]} Rce7 {[%emt 0:00:27]} 30. Rb3 {[%emt 0:00:44]} Ra1 {[%emt 0:01:27]} 31. Be6+ {[%emt 0:00:28]} Kf8 {[%emt 0:00:30]} 32. Rb6 {[%emt 0:01:16]} Rxa4 {[%emt 0:00:27]} 33. Re4 {[%emt 0:02:26]} f5 {[%emt 0:01:12]} 34. Rd4 {[%emt 0:02:18]} Rc7 {[%emt 0:03:19]} 35. b3 {[%emt 0:01:45]} Ra2+ {[%emt 0:00:45]} 36. Ke3 {[%emt 0:00:35]} Ke7 {[%emt 0:00:48]} 37. Rd2 {[%emt 0:02:32]} Ra3 {[%emt 0:01:24]} 38. Bxf5 {[%emt 0:02:21]} g6 {[%emt 0:01:08]} 39. Be6 {[%emt 0:00:43]} a5 {[%emt 0:02:59]} 40. Rf2 {[%emt 0:00:00]} Ke8 {[%emt 0:00:00]} 41. Rf7 {[%emt 0:04:51]} Rxf7 {[%emt 0:04:26]} 42. Bxf7+ {[%emt 0:00:10]} Kxf7 {[%emt 0:00:32]} 43. Rxb7+ {[%emt 0:00:02]} Kf6 {[%emt 0:00:17]} 44. Kd4 {[%emt 0:01:10]} a4 {[%emt 0:06:08]} 45. bxa4 {[%emt 0:03:55]} Rxa4 {[%emt 0:01:03]} 46. Rxh7 {[%emt 0:00:32]} Ra1 {[%emt 0:00:39]} 47. Rd7 {[%emt 0:00:48]} Rd1+ {[%emt 0:00:45]} 48. Ke4 {[%emt 0:00:17]} Re1+ {[%emt 0:00:28]} 49. Kd3 {[%emt 0:00:07]} Rd1+ {[%emt 0:01:01]} 50. Kc2 {[%emt 0:00:40]} Rh1 {[%emt 0:00:27]} 51. Rxd6+ {[%emt 0:00:07]} Kf5 {[%emt 0:00:17]} 52. Re6 {[%emt 0:01:05]} Rxh2+ {[%emt 0:00:07]} 53. Kd3 {[%emt 0:00:10]} Rh3 {[%emt 0:00:19]} 54. Re3 {[%emt 0:00:11]} Rh1 {[%emt 0:00:51]} 55. Kd4 {[%emt 0:00:14]} Rd1+ {[%emt 0:00:16] Ke4+} 1-0